[Event "85th Tata Steel Challengers 2023"]
[Site "Wijk aan Zee"]
[Date "2023.01.16"]
[Round "3.1"]
[White "Mishra, Abhimanyu"]
[Black "Ivic, Velimir"]
[Result "0-1"]
[ECO "D11"]
[WhiteElo "2559"]
[BlackElo "2585"]
[Annotator "TA"]
[PlyCount "96"]
[EventDate "2023.01.10"]
[EventType "tourn"]
[EventCountry "NED"]
[SourceTitle "playchess.com"]
[Source "ChessBase"]
[SourceQuality "1"]
[TimeControl "40/6000+30:30/3000+30:900+30"]

{[%evp 13,96,27,23,27,33,30,21,0,7,10,0,0,0,-26,-15,-27,0,0,0,0,0,0,7,-14,0,-14,0,6,14,0,0,0,0,0,0,-22,0,-29,0,-7,0,0,0,0,0,0,0,0,0,-111,-51,-71,-66,-275,-278,-286,-262,-266,-237,-197,-92,-655,-365,-968,-950,-929,-895,-29977,-29978,-29978,-29979,-29982,-29974,-29976,-29973,-29976,-29977,-29977,-29978,-29981,-29982,-29981,-29982,-29983,-29984]} 1. d4 {[%emt 0:00:02]} d5 {[%emt 0:00:27]} 2. Nf3 {[%emt 0:00:11]} Nf6 {[%emt 0:00:18]} 3. c4 {[%emt 0:00:16]} c6 {[%emt 0:00:22]} 4. e3 {[%emt 0:00:17]} Bg4 {[%emt 0:00:33]} 5. Nc3 {[%emt 0:02:17]} e6 {[%emt 0:00:29]} 6. h3 {[%emt 0:00:44]} Bh5 {[%emt 0:00:33]} 7. g4 {[%emt 0:01:27]} Bg6 {[%emt 0:00:08]} 8. Ne5 {[%emt 0:00:36] D11: Slav Defence: 3 Nf3 sidelines and 3...Nf6 4 e3 Bg4.} Nbd7 {[%emt 0:01:20]} 9. Nxg6 {[%emt 0:00:33]} hxg6 {[%emt 0:00:07]} 10. Bd2 {[%emt 0:01:48] The position is equal.} Bb4 {[%emt 0:03:23]} 11. cxd5 {[%emt 0:03:17]} exd5 {[%emt 0:04:28]} 12. Bd3 {[%emt 0:01:17]} Qe7 {[%emt 0:02:13]} 13. a3 {[%emt 0:08:41]} Bxc3 {[%emt 0:03:06]} 14. Bxc3 {[%emt 0:02:42]} a5 {[%emt 0:08:52]} 15. Qe2 {[%emt 0:10:01]} Ne4 {[%emt 0:01:51] [#]} 16. Kf1 $146 {[%emt 0:09:05]} ({Predecessor:} 16. Bxe4 Qxe4 17. f3 Qe7 18. O-O-O b5 19. Qe1 b4 20. axb4 {0-1 Khurtsidze,N (2443)-Gunina,V (2507) EU-ch (Women) 14th 2013 (7)}) 16... f5 {[%emt 0:10:56]} 17. Kg2 {[%emt 0:08:32]} O-O {[%emt 0:05:45]} 18. f3 {[%emt 0:09:47]} Nd6 {[%emt 0:11:16]} 19. Be1 {[%emt 0:08:56]} Rfe8 {[%emt 0:08:26]} 20. Bf2 {[%emt 0:00:29]} a4 {[%emt 0:01:07]} 21. Rhe1 {[%emt 0:07:29]} Nb6 {[%emt 0:02:43]} 22. Bg3 {[%emt 0:04:35]} Nbc4 {[%emt 0:12:37][%cal Rc4e3]} 23. Bf4 {[%emt 0:04:49]} b5 {[%emt 0:00:42]} 24. g5 {[%emt 0:03:54]} Qf7 {[%emt 0:01:57][%cal Oc4e3]} 25. Qf2 {[%emt 0:01:30]} Re6 {[%emt 0:00:32]} 26. Re2 {[%emt 0:02:33]} Rae8 {[%emt 0:01:13]} 27. h4 {[%emt 0:01:19]} R6e7 {[%emt 0:04:33]} 28. Rae1 {[%emt 0:03:23]} Nb7 {[%emt 0:02:06]} 29. e4 {[%emt 0:06:04]} fxe4 {[%emt 0:01:29]} 30. fxe4 {[%emt 0:00:02]} Rf8 {[%emt 0:01:13]} 31. Bxc4 {[%emt 0:01:49]} (31. exd5 $11 Rxe2 32. Rxe2 Qxd5+ 33. Be4) 31... bxc4 {[%emt 0:00:28]} (31... dxc4 $17 32. Bg3 Qe6) 32. Be5 $15 {[%emt 0:01:08]} Qe6 {[%emt 0:07:58]} 33. Qe3 {[%emt 0:00:47] [#]} (33. Qg3 $15) 33... Nc5 $1 $19 {[%emt 0:05:09][%mdl 576] aiming for ...Nd3. Deflection} 34. Bxg7 {[%emt 0:02:33] White is weak on the light squares} ({Of course not} 34. exd5 Qxd5+ 35. Kg1 (35. Kh2 $2 Nd3 $19) 35... Rf3 36. dxc5 Rxe3 37. Rxe3 Qxc5) 34... Rxg7 {[%emt 0:00:37]} ({And not} 34... Kxg7 35. dxc5 Kg8 36. Qh3 $11) 35. dxc5 {[%emt 0:00:23] [#]} d4 {[%emt 0:00:07][%cal Bd5d4,Bd4d3][%mdl 544]} 36. Qh3 {[%emt 0:01:44]} Qe5 {[%emt 0:00:32]} (36... Qe7 $19 {has better winning chances.} 37. e5 d3) 37. Qg3 {[%emt 0:01:07][%mdl 8192]} (37. Rf1 $17) 37... Qxc5 {[%emt 0:00:32] White must now prevent ...Rgf7.} 38. e5 $2 {[%emt 0:01:21]} (38. Rf1 Rxf1 39. Kxf1) 38... Qd5+ {[%emt 0:01:11]} 39. Kh2 {[%emt 0:00:56]} d3 {[%emt 0:03:42]} 40. Rf2 {[%emt 0:01:10]} Rxf2+ {[%emt 0:01:26] Black mates.} 41. Qxf2 {[%emt 0:02:12] KQR-KQR} Rf7 {[%emt 0:03:26]} 42. Qd2 {[%emt 0:15:44]} Qf3 {[%emt 0:03:42]} 43. Qg2 {[%emt 0:03:00]} Qf2 {[%emt 0:06:16]} 44. Qxf2 {[%emt 0:04:07]} Rxf2+ {[%emt 0:00:32]} 45. Kg3 {[%emt 0:01:45]} Rxb2 {[%emt 0:00:08]} 46. Kf3 {[%emt 0:03:15]} c3 {[%emt 0:04:26]} 47. Ke3 {[%emt 0:00:44]} c2 {[%emt 0:00:25]} 48. Kd2 {[%emt 0:00:58] [#]} c1=Q+ $1 {[%emt 0:00:16][%mdl 576] Decoy, Promotion.   Weighted Error Value: White=0.53/Black=0.19 (very precise)} 0-1

[Event "85th Tata Steel Challengers 2023"]
[Site "Wijk aan Zee"]
[Date "2023.01.16"]
[Round "3.2"]
[White "Donchenko, Alexander"]
[Black "Adhiban, B.."]
[Result "1/2-1/2"]
[ECO "B38"]
[WhiteElo "2627"]
[BlackElo "2610"]
[Annotator "TA"]
[PlyCount "91"]
[EventDate "2023.01.10"]
[EventType "tourn"]
[EventCountry "NED"]
[SourceTitle "playchess.com"]
[Source "ChessBase"]
[SourceQuality "1"]
[TimeControl "40/6000+30:30/3000+30:900+30"]

{[%evp 11,91,41,59,35,26,8,15,16,17,18,24,13,34,28,52,55,59,47,78,81,91,92,100,97,91,67,67,65,83,68,54,16,37,47,85,89,104,85,100,24,29,22,36,37,33,0,0,0,20,23,22,28,21,48,50,20,47,61,39,46,99,13,91,83,142,66,143,0,35,40,36,52,60,0,0,0,0,0,0,0,0,0]} 1. Nf3 {[%emt 0:00:03][%cal Bg1f3,Bf3d4,Bd4b5,Bb5a3,Ba3c2][%mdl 32]} c5 {[%emt 0:00:07]} 2. c4 {[%emt 0:00:14]} g6 {[%emt 0:00:10]} 3. d4 {[%emt 0:00:37]} cxd4 {[%emt 0:00:12]} 4. Nxd4 {[%emt 0:00:08]} Bg7 {[%emt 0:00:16]} 5. e4 {[%emt 0:00:34]} Nc6 {[%emt 0:00:09]} 6. Be3 {[%emt 0:00:43]} Qb6 {[%emt 0:00:07][%cal Rc6d4]} 7. Nb5 {[%emt 0:09:49] B38: Sicilian: Maroczy Bind with 5...Bg7 and 7...0-0.} (7. Nb3 $5 {[%cal Re3b6]} Qc7 8. Qd2 $14 (8. Nc3 Bxc3+ 9. bxc3 Nf6 $11)) 7... Qa5+ {[%emt 0:00:03]} 8. Bd2 {[%emt 0:03:39]} Qd8 {[%emt 0:00:02]} 9. N1c3 {[%emt 0:01:07]} a6 {[%emt 0:02:26]} 10. Na3 {[%emt 0:00:25]} d6 {[%emt 0:01:56]} 11. Be2 {[%emt 0:03:22]} Nd4 {[%emt 0:03:25]} 12. O-O {[%emt 0:07:51] [#]} e5 $146 {[%emt 0:00:23]} ({Predecessor:} 12... Nf6 13. Nc2 Nxc2 14. Qxc2 O-O 15. Rac1 Be6 16. b3 Rc8 17. Qd3 Nd7 18. Nd5 Nc5 {½-½ Demchenko,A (2653)-Niedbala,B (2381) Piestany Slovakia op-A 2022 (2)}) 13. Nc2 {[%emt 0:05:53]} Ne7 {[%emt 0:00:41]} 14. Bg5 {[%emt 0:06:39] Strongly threatening Nxd4.} h6 {[%emt 0:06:35]} 15. Bxe7 {[%emt 0:00:48]} Nxe2+ {[%emt 0:05:45]} 16. Qxe2 {[%emt 0:00:29]} Qxe7 {[%emt 0:00:02]} 17. Nd5 {[%emt 0:07:26]} Qd8 {[%emt 0:00:02]} 18. b4 {[%emt 0:00:16]} Be6 {[%emt 0:00:47]} 19. Nce3 {[%emt 0:03:00]} Rc8 {[%emt 0:03:43]} 20. Rac1 {[%emt 0:06:55]} O-O {[%emt 0:00:13]} 21. c5 {[%emt 0:03:17]} dxc5 {[%emt 0:05:05]} 22. bxc5 {[%emt 0:00:58]} Kh7 {[%emt 0:04:33]} 23. Qb2 $1 {[%emt 0:12:42]} Rb8 {[%emt 0:00:56]} 24. Rfd1 {[%emt 0:03:37] White is much more active.} f5 {[%emt 0:03:03]} 25. Qb6 {[%emt 0:05:52]} (25. exf5 $16 gxf5 26. Qc2) 25... Qxb6 $11 {[%emt 0:00:48]} 26. cxb6 {[%emt 0:00:07]} fxe4 {[%emt 0:01:43]} 27. Rc7 {[%emt 0:06:36] aiming for Nc3.} Rf7 {[%emt 0:03:16]} 28. Kf1 {[%emt 0:04:09]} (28. Nc3 $5 {[%cal Rd1d6]} Rc8 29. Rxf7 Bxf7 30. Rd7 Rxc3 31. Rxf7 Rc1+ 32. Nf1 $14) 28... Bf8 {[%emt 0:08:00]} 29. Rdc1 {[%emt 0:05:17] Rxf7+ is the strong threat.} Bd6 {[%emt 0:03:26]} 30. Rxf7+ {[%emt 0:03:59]} Bxf7 {[%emt 0:00:02]} 31. Nf6+ {[%emt 0:00:23]} Kg7 {[%emt 0:00:07]} 32. Nxe4 {[%emt 0:00:05] Excellent horsemanship.} Rd8 {[%emt 0:00:38]} 33. a4 {[%emt 0:03:51]} Kf8 {[%emt 0:12:29]} 34. Nxd6 {[%emt 0:00:48]} Rxd6 $14 {[%emt 0:00:04][%mdl 4096] Endgame KRB-KRN} 35. a5 {[%emt 0:00:18] Threatens to win with Rc7.} Ke7 {[%emt 0:00:36]} (35... Be6 $14) 36. Ke2 {[%emt 0:05:17]} (36. Ng4 $1 $16) 36... h5 {[%emt 0:03:31]} (36... Bb3 $11 {keeps the balance.}) 37. Rc5 $1 $16 {[%emt 0:00:46]} ({Of course not} 37. Rc7+ $6 Rd7 $11) 37... e4 {[%emt 0:00:27] [#]} (37... Be8 $142) 38. Re5+ {[%emt 0:00:56]} ({Reject} 38. Rc7+ $6 Rd7 $11) (38. g4 $1 $16 {[%cal Rg4h5]}) 38... Re6 {[%emt 0:00:07] [#]} ({Black should play} 38... Kf6 $14 39. Rxe4 Be6) 39. Rc5 {[%emt 0:00:04]} (39. Nc4 $1 $16) 39... Kd6 {[%emt 0:00:49]} 40. Rd5+ {[%emt 0:00:58]} (40. Rc7 $5 Re7 $8 41. Rc8 $11) 40... Kc6 {[%emt 0:00:53]} 41. Rg5 {[%emt 0:04:02]} Re8 {[%emt 0:18:41]} 42. g4 {[%emt 0:23:36]} (42. h4 $14) 42... Rh8 $1 $11 {[%emt 0:01:52] The position is equal.} 43. Re5 {[%emt 0:05:22]} Re8 {[%emt 0:01:06] Against Re7} 44. Rg5 {[%emt 0:00:06]} Rh8 $1 {[%emt 0:00:04]} 45. Re5 {[%emt 0:00:59]} Re8 {[%emt 0:00:16] Prevents Re7.} 46. Rg5 {[%emt 0:00:29] Weighted Error Value: White=0.20 (precise) /Black=0.16 (very precise)} 1/2-1/2

[Event "85th Tata Steel Challengers 2023"]
[Site "Wijk aan Zee"]
[Date "2023.01.16"]
[Round "3.3"]
[White "Tabatabaei, M. Amin"]
[Black "Supi, Luis Paulo"]
[Result "1/2-1/2"]
[ECO "B90"]
[WhiteElo "2686"]
[BlackElo "2608"]
[Annotator "TA"]
[PlyCount "97"]
[EventDate "2023.01.10"]
[EventType "tourn"]
[EventCountry "NED"]
[SourceTitle "playchess.com"]
[Source "ChessBase"]
[SourceQuality "1"]
[TimeControl "40/6000+30:30/3000+30:900+30"]

{[%evp 9,97,19,30,0,15,20,27,0,1,0,6,0,0,-7,-2,-8,0,0,0,-54,-41,-55,-43,-113,-99,-122,-114,-123,-127,-123,-16,-92,-92,-87,-89,-89,-89,-89,-89,-97,-89,-89,-89,-89,-89,-102,-89,-99,-89,-89,-87,-89,-87,-89,-68,-82,-76,-76,-76,-79,-61,-79,-62,-79,-33,-78,-70,-70,-70,-70,-26,-70,0,0,0,0,0,0,0,0,0,0,0,0,0,0,0,0,0,0]} 1. e4 {[%emt 0:00:29]} c5 {[%emt 0:00:01]} 2. Nf3 {[%emt 0:00:27]} d6 {[%emt 0:00:02]} 3. d4 {[%emt 0:00:23]} cxd4 {[%emt 0:00:02]} 4. Nxd4 {[%emt 0:00:10]} Nf6 {[%emt 0:00:04]} 5. Nc3 {[%emt 0:00:09]} a6 {[%emt 0:00:10]} 6. Qd3 {[%emt 0:00:11] B90: Sicilian Najdorf: Unusual White 6th moves, 6 Be3 Ng4 and 6 Be3 e5.} Nbd7 {[%emt 0:01:51]} 7. Be2 {[%emt 0:00:16]} e6 {[%emt 0:01:22]} 8. a4 {[%emt 0:04:08] White has an edge. 8.g4 is setting a new trend.} b6 {[%emt 0:00:41]} 9. O-O {[%emt 0:02:43]} Bb7 {[%emt 0:00:40]} 10. Qg3 {[%emt 0:01:24]} Nxe4 {[%emt 0:15:02]} 11. Nxe4 {[%emt 0:05:17]} Bxe4 {[%emt 0:00:05]} 12. Re1 {[%emt 0:00:55][%cal Oe2a6]} Nf6 {[%emt 0:04:19] [#]} 13. a5 $146 {[%emt 0:09:36]} ({Predecessor:} 13. Bd2 d5 14. Bf3 Bxf3 15. Qxf3 Bc5 16. Bc3 Ne4 17. b4 Bd6 18. Bb2 Qc7 19. Qh3 {0-1 Van Foreest,J (2701)-Duda,J (2729) EU-Cup Online Final rapid 2021 (1.1)}) 13... bxa5 {[%emt 0:08:29]} 14. Bd2 {[%emt 0:13:04]} (14. Bc4 $11) 14... Be7 $15 {[%emt 0:02:36]} 15. Bxa5 {[%emt 0:01:24]} (15. Qxg7 $2 {loses.} Rg8 16. Qh6 Rxg2+ 17. Kf1 Rg6 $19) 15... Qd7 {[%emt 0:03:55]} 16. Bc3 {[%emt 0:00:31]} (16. Qxg7 $2 {perishes.} Rg8 $19) (16. Bd2 $15) 16... O-O $17 {[%emt 0:05:07]} 17. Bd3 {[%emt 0:01:13]} Bxd3 {[%emt 0:03:26]} 18. Qxd3 {[%emt 0:00:03]} Qb7 {[%emt 0:05:28]} 19. Ra5 {[%emt 0:02:40]} Nd5 {[%emt 0:03:42]} ({Black should try} 19... d5 $17 {Strongly threatening ...Ne4.} 20. f3 Bb4) 20. Nf5 {[%emt 0:02:01]} Nxc3 {[%emt 0:00:18]} 21. Nxe7+ {[%emt 0:00:13]} Qxe7 {[%emt 0:00:01]} 22. Qxc3 {[%emt 0:01:18]} h6 {[%emt 0:07:29]} 23. Qd3 {[%emt 0:05:49]} Qb7 {[%emt 0:01:12]} 24. Qxd6 {[%emt 0:02:01]} Qxb2 {[%emt 0:00:16]} 25. Rxa6 {[%emt 0:00:40]} Rxa6 {[%emt 0:05:36]} 26. Qxa6 {[%emt 0:00:22]} Qxc2 {[%emt 0:00:03][%mdl 4096] Endgame KQR-KQR} 27. Qe2 {[%emt 0:00:21]} Qc5 {[%emt 0:02:13]} 28. Qe3 {[%emt 0:00:50]} Qe7 {[%emt 0:00:05]} 29. g3 {[%emt 0:00:19]} Rd8 {[%emt 0:00:56]} 30. h4 {[%emt 0:00:11]} Qb4 {[%emt 0:02:17]} 31. Kg2 {[%emt 0:02:18]} Re8 {[%emt 0:02:42]} 32. Qe4 {[%emt 0:00:14]} Qb5 {[%emt 0:00:32]} (32... Qxe4+ {simplifies} 33. Rxe4 Rd8 34. g4 h5) 33. Rb1 {[%emt 0:02:27]} Qc5 {[%emt 0:00:43]} 34. Qf3 {[%emt 0:03:10]} Qd6 {[%emt 0:01:57]} 35. Rb7 {[%emt 0:03:40]} Rf8 {[%emt 0:00:29]} 36. Ra7 {[%emt 0:01:22]} e5 {[%emt 0:04:53]} (36... Qc5 $17 37. Ra3 Rc8) 37. Qb7 {[%emt 0:02:36]} Qe6 {[%emt 0:00:35]} 38. Ra6 {[%emt 0:01:09]} Qf5 {[%emt 0:02:01]} 39. Qf3 {[%emt 0:01:37]} Qc2 {[%emt 0:00:15]} (39... Qxf3+ {simplifies} 40. Kxf3 h5 41. Ke4 f6) 40. Qd5 {[%emt 0:01:20]} e4 {[%emt 0:01:09]} ({Black should play} 40... Re8 $15) 41. Ra2 $36 {[%emt 0:52:33][%mdl 2048] White has the initiative. The position is equal.} Qb1 {[%emt 0:50:53]} 42. Ra8 {[%emt 0:00:18]} g6 {[%emt 0:02:21]} 43. Rxf8+ {[%emt 0:00:24]} Kxf8 {[%emt 0:00:01] KQ-KQ} 44. Qd8+ {[%emt 0:00:08]} Kg7 {[%emt 0:00:04]} 45. Qd4+ {[%emt 0:00:03]} Kh7 {[%emt 0:00:19]} 46. Qd5 {[%emt 0:00:06] Wards off Qb7} Kg7 {[%emt 0:00:21]} 47. Qe5+ {[%emt 0:00:10]} Kh7 {[%emt 0:00:11]} 48. Qd5 {[%emt 0:00:05]} Kg7 {[%emt 0:00:03]} 49. Qe5+ {[%emt 0:00:06] Weighted Error Value: White=0.14 (very precise) /Black=0.12 (very precise)} 1/2-1/2

[Event "85th Tata Steel Challengers 2023"]
[Site "Wijk aan Zee"]
[Date "2023.01.16"]
[Round "3.4"]
[White "Warmerdam, Max"]
[Black "Roebers, Eline"]
[Result "1/2-1/2"]
[ECO "E11"]
[WhiteElo "2616"]
[BlackElo "2361"]
[Annotator "TA"]
[PlyCount "169"]
[EventDate "2023.01.10"]
[EventType "tourn"]
[EventCountry "NED"]
[SourceTitle "playchess.com"]
[Source "ChessBase"]
[SourceQuality "1"]
[TimeControl "40/6000+30:30/3000+30:900+30"]

{[%evp 10,169,22,10,22,21,25,33,43,35,54,9,11,6,18,0,9,9,13,0,45,8,12,11,23,17,34,-11,-15,-46,-45,-52,-64,-49,-47,-62,-39,-82,-96,-119,-25,-32,-21,-42,-42,-56,-55,-45,-43,-43,-43,-41,-43,-56,-61,-51,-40,-130,-16,-16,-16,-16,-19,-47,0,0,0,0,0,0,0,-7,0,0,0,-7,0,0,0,0,0,-18,-8,-18,-1,-13,0,-1,0,0,0,0,0,0,0,0,0,0,0,0,0,0,0,0,0,0,0,0,0,0,0,0,0,0,0,0,0,0,0,0,0,0,0,-22,0,-327,-80,-80,-62,-62,0,0,0,0,0,0,0,0,0,0,0,0,0,0,0,0,0,0,0,0,0,0,0,0,0,0,0,0,0,0,0,0]} 1. d4 {[%emt 0:00:03]} Nf6 {[%emt 0:00:10]} 2. c4 {[%emt 0:00:07]} e6 {[%emt 0:00:03]} 3. Nf3 {[%emt 0:00:07]} Bb4+ {[%emt 0:00:07]} 4. Nbd2 {[%emt 0:00:05]} O-O {[%emt 0:00:20]} 5. a3 {[%emt 0:00:47]} Be7 {[%emt 0:00:05]} 6. e4 {[%emt 0:00:42]} d6 {[%emt 0:00:26] E11: Bogo-Indian.} (6... d5 $5 {[%cal Rd5e4]}) 7. Be2 {[%emt 0:00:07]} e5 {[%emt 0:02:30] 7...Nfd7 is a critical line.} 8. dxe5 {[%emt 0:01:44]} dxe5 {[%emt 0:00:06] White is slightly better.} 9. Nxe5 {[%emt 0:00:06]} Re8 {[%emt 0:00:04]} 10. Nef3 {[%emt 0:06:35] [#]} Bf8 $146 {[%emt 0:05:08]} ({Predecessor:} 10... Nc6 11. O-O a5 12. b3 Bc5 13. Bb2 Nxe4 14. Nxe4 Qxd1 15. Raxd1 Rxe4 16. Bd3 Re8 {½-½ Van Wely,L (2646)-Bachmann,A (2648) ESP-chT CECLUB Honor 2017 (4.3)}) 11. O-O {[%emt 0:07:22]} Nc6 {[%emt 0:16:17]} 12. Qc2 {[%emt 0:10:52]} Bf5 {[%emt 0:06:18]} 13. Bd3 {[%emt 0:02:28]} Bg6 {[%emt 0:00:05]} 14. Re1 {[%emt 0:09:46]} Qd6 {[%emt 0:09:17]} 15. Qc3 {[%emt 0:11:14]} a5 {[%emt 0:08:37]} 16. h3 {[%emt 0:12:48]} Nd7 {[%emt 0:07:33]} 17. Bc2 {[%emt 0:03:16]} Be7 {[%emt 0:08:24]} 18. Nf1 {[%emt 0:09:34] Rd1 is the strong threat.} (18. e5 {is more complex.} Ncxe5 19. Nxe5 Bf6 20. Bxg6 hxg6 21. f4) 18... Bf6 {[%emt 0:02:31]} 19. Qd2 {[%emt 0:00:07]} Qxd2 {[%emt 0:02:17]} 20. N1xd2 {[%emt 0:01:07]} Nc5 {[%emt 0:02:44]} 21. Rb1 {[%emt 0:00:29]} a4 {[%emt 0:01:05][%mdl 1024] Black has compensation.} 22. g4 {[%emt 0:03:34]} Rad8 {[%emt 0:06:58]} 23. Re2 {[%emt 0:04:53]} Na5 {[%emt 0:11:38]} 24. g5 {[%emt 0:11:33]} Be5 {[%emt 0:01:58]} (24... Be7 $17 25. Re3 Bd6) 25. Nxe5 $11 {[%emt 0:01:30]} Rxe5 {[%emt 0:00:05]} 26. Nf3 {[%emt 0:00:10]} Rxe4 {[%emt 0:06:57]} 27. Bxe4 {[%emt 0:00:19]} Bxe4 {[%emt 0:10:15]} 28. Rxe4 {[%emt 0:00:09]} Nxe4 {[%emt 0:00:03]} 29. Bf4 {[%emt 0:00:07]} Nxc4 {[%emt 0:00:41]} 30. Bxc7 {[%emt 0:00:16]} Rd3 {[%emt 0:00:39]} 31. Re1 $1 {[%emt 0:04:04]} f5 {[%emt 0:00:09]} (31... Rxf3 $2 32. Rxe4 h6 33. Rxc4 $18) 32. gxf6 $1 {[%emt 0:00:05]} Nxf6 {[%emt 0:00:06] A dynamic duo of knights.} 33. Kg2 {[%emt 0:01:56] [#]} (33. Ne5 $15 Nxe5 34. Bxe5) 33... b5 {[%emt 0:02:08]} ({Inferior is} 33... Nxb2 34. Rb1 Nd1 35. Rxb7 $11) (33... Rb3 $1 $17 34. Be5 Nxb2) 34. Ne5 {[%emt 0:01:52]} Nxe5 {[%emt 0:00:36]} 35. Bxe5 {[%emt 0:00:12][%mdl 4096] Endgame KRB-KRN} Kf7 {[%emt 0:00:34]} 36. Rc1 {[%emt 0:01:45]} Nd7 {[%emt 0:00:54]} (36... Ke6 $15 37. Rc3 Rxc3 38. Bxc3 Kf5) 37. Rc7 {[%emt 0:00:15]} g6 {[%emt 0:00:24]} 38. Bc3 {[%emt 0:00:21]} Ke6 {[%emt 0:00:38]} 39. Rc8 {[%emt 0:00:20]} Rd5 {[%emt 0:00:36]} 40. Rh8 {[%emt 0:01:30]} Rh5 {[%emt 0:00:31]} 41. Kg3 {[%emt 0:55:13]} Nc5 {[%emt 0:03:16] Strongly threatening ...Ne4+.} 42. f3 {[%emt 0:00:00] Prevents Ne4+} Rg5+ {[%emt 0:12:22]} 43. Kf4 {[%emt 0:00:00]} Rh5 {[%emt 0:02:28]} 44. Kg4 {[%emt 0:00:00]} Nb7 {[%emt 0:03:42]} 45. Be1 {[%emt 0:00:00]} Nd6 {[%emt 0:02:03]} 46. Rb8 {[%emt 0:00:00]} Rf5 {[%emt 0:06:52]} 47. Bc3 {[%emt 0:00:00]} Nf7 {[%emt 0:03:11]} 48. f4 {[%emt 0:00:00]} Nh6+ {[%emt 0:05:55]} 49. Kf3 {[%emt 0:00:00]} Nf7 {[%emt 0:02:59]} 50. Kg3 {[%emt 0:00:00]} Rd5 {[%emt 0:04:22]} 51. Rb6+ {[%emt 0:00:00]} Kd7 {[%emt 0:00:11]} 52. Rb7+ {[%emt 0:00:00]} Ke6 {[%emt 0:00:10]} 53. Rb6+ {[%emt 0:00:00]} Kd7 {[%emt 0:00:07]} 54. Rb7+ {[%emt 0:00:00]} Ke6 {[%emt 0:00:05]} 55. h4 {[%emt 0:00:23]} Nd6 {[%emt 0:06:40]} 56. Rxh7 {[%emt 0:03:40]} Kf5 {[%emt 0:02:26]} 57. Kf3 {[%emt 0:03:47] Hoping for h5.} Rd3+ {[%emt 0:00:43]} 58. Ke2 {[%emt 0:00:06]} Rh3 {[%emt 0:00:21]} 59. Rd7 {[%emt 0:00:13]} Ke6 {[%emt 0:00:26]} 60. Rg7 {[%emt 0:00:22]} Kf5 {[%emt 0:00:40]} 61. Rd7 {[%emt 0:01:48]} Ke6 {[%emt 0:00:30]} 62. Rh7 {[%emt 0:00:26]} Kf5 {[%emt 0:00:00]} 63. Bb4 {[%emt 0:00:00]} Nc4 {[%emt 0:00:00]} 64. Rb7 {[%emt 0:00:00]} Ke4 {[%emt 0:00:00]} 65. Rxb5 {[%emt 0:00:00]} Rh2+ {[%emt 0:00:00]} 66. Ke1 {[%emt 0:00:53]} Nxb2 {[%emt 0:02:31][%cal Oe4f3]} 67. Re5+ $2 {[%emt 0:01:27][%mdl 8192] [#]} (67. Rb6 $1 $11 {and White is okay.}) 67... Kxf4 $2 {[%emt 0:01:12]} (67... Kf3 $1 $19 {is more deadly. ...Nd3+ would be deadly.} 68. Re8 (68. Rd5 $2 Nc4 $19) 68... Nd3+ 69. Kd1 Nxb4 70. axb4 a3) 68. Rb5 $17 {[%emt 0:01:23] Threatens to win with Bd6+.} Nd3+ {[%emt 0:00:41]} 69. Kd1 {[%emt 0:00:02] Black must now prevent Bd6+.} Ke3 {[%emt 0:00:35]} ({Better is} 69... Rxh4 $15 70. Be7 Rh5) 70. Bc5+ $1 $11 {[%emt 0:00:15] The position is equal.} Nxc5 {[%emt 0:00:13]} 71. Rxc5 {[%emt 0:15:01]} Rxh4 {[%emt 0:15:27] KR-KR} 72. Rg5 $1 {[%emt 0:00:20] Repels Rg4} Rd4+ {[%emt 0:00:37]} 73. Kc2 {[%emt 0:00:42]} Rd6 {[%emt 0:00:05]} 74. Ra5 {[%emt 0:00:04]} Rc6+ {[%emt 0:00:30]} 75. Kb2 {[%emt 0:01:41]} Kf3 {[%emt 0:00:04]} 76. Rxa4 {[%emt 0:00:26]} g5 {[%emt 0:00:04]} 77. Ra8 {[%emt 0:00:27]} Rf6 {[%emt 0:01:06]} ({Reject} 77... g4 $6 78. Rf8+ Ke3 79. Rg8 $17) 78. Rg8 {[%emt 0:00:14]} g4 {[%emt 0:00:04]} 79. a4 {[%emt 0:00:50]} g3 {[%emt 0:00:38]} 80. Kb3 $1 {[%emt 0:00:44]} g2 {[%emt 0:01:30]} 81. a5 {[%emt 0:00:10]} Rf4 {[%emt 0:00:44] ( -> ...Rg4)} 82. a6 {[%emt 0:00:10] Intending a7 and mate.} Rg4 {[%emt 0:00:25]} 83. Rxg4 {[%emt 0:00:04]} Kxg4 {[%emt 0:00:03]} 84. a7 {[%emt 0:00:04]} g1=Q {[%emt 0:00:04]} 85. a8=Q {[%emt 0:00:03] Weighted Error Value: White=0.10 (very precise) /Black=0.11 (very precise)} 1/2-1/2